[Event "Titled Tuesday Blitz May 03 Early 2022"]
[White "Avazkhonov, Alikhon"]
[Black "Kovalenko, Igor"]
[WhiteFideId "14208504"]
[BlackFideId "14117908"]
[WhiteElo "1739"]
[BlackElo "2560"]
[Result "0-1"]
[Round "02"]
[TimeControl "180+1"]
[Date "2022.05.03"]
[WhiteClock "0:00:02"]
[BlackClock "0:01:49"]

1. f4 {[%clk 0:03:00]}  d5 {[%clk 0:02:59]} 2. Nf3 {[%clk 0:03:00]}  g6 {[%clk 0:02:59]} 3. g3 {[%clk 0:03:01]}  Bg7 {[%clk 0:03:00]} 4. Bg2 {[%clk 0:03:01]}  b5 {[%clk 0:03:01]} 5. O-O {[%clk 0:02:58]}  Bb7 {[%clk 0:03:02]} 6. d3 {[%clk 0:02:59]}  Nf6 {[%clk 0:03:01]} 7. Nc3 {[%clk 0:02:59]}  b4 {[%clk 0:03:01]} 8. Nb1 {[%clk 0:02:54]}  a5 {[%clk 0:03:00]} 9. Qe1 {[%clk 0:02:53]}  c5 {[%clk 0:02:58]} 10. c3 {[%clk 0:02:42]}  O-O {[%clk 0:02:56]} 11. Ne5 {[%clk 0:02:37]}  Nc6 {[%clk 0:02:30]} 12. Nxc6 {[%clk 0:02:29]}  Bxc6 {[%clk 0:02:31]} 13. e4 {[%clk 0:02:29]}  dxe4 {[%clk 0:02:24]} 14. dxe4 {[%clk 0:02:30]}  Qb6 {[%clk 0:02:20]} 15. Nd2 {[%clk 0:02:15]}  Rfd8 {[%clk 0:02:20]} 16. Nc4 {[%clk 0:02:08]}  Qa6 {[%clk 0:02:20]} 17. Ne5 {[%clk 0:02:08]}  Bb7 {[%clk 0:02:15]} 18. c4 {[%clk 0:01:49]}  a4 {[%clk 0:02:10]} 19. h3 {[%clk 0:00:53]}  Nd7 {[%clk 0:02:05]} 20. Nxd7 {[%clk 0:00:37]}  Rxd7 {[%clk 0:02:06]} 21. Qe2 {[%clk 0:00:11]}  a3 {[%clk 0:01:54]} 22. Rb1 {[%clk 0:00:10]}  axb2 {[%clk 0:01:54]} 23. Bxb2 {[%clk 0:00:11]}  Qxa2 {[%clk 0:01:54]} 24. Rfe1 {[%clk 0:00:08]}  Rad8 {[%clk 0:01:51]} 25. Bxg7 {[%clk 0:00:05]}  Qxe2 {[%clk 0:01:50]} 26. Rxe2 {[%clk 0:00:06]}  Kxg7 {[%clk 0:01:50]} 27. e5 {[%clk 0:00:05]}  Rd1+ {[%clk 0:01:50]} 28. Rxd1 {[%clk 0:00:05]}  Rxd1+ {[%clk 0:01:51]} 29. Kh2 {[%clk 0:00:04]}  Bxg2 {[%clk 0:01:50]} 30. Kxg2 {[%clk 0:00:05]}  Rc1 {[%clk 0:01:49]} 31. Re4 {[%clk 0:00:03]}  b3 {[%clk 0:01:50]} 32. Re2 {[%clk 0:00:02]}  Rc2 {[%clk 0:01:49]} 0-1


[Site "https://www.chess.com"]

[Event "Titled Tuesday Blitz May 03 Early 2022"]
[White "Baches Garcia, Guillermo"]
[Black "Valle Maytin, Luis Enrique"]
[WhiteFideId "2209764"]
[BlackFideId "3503666"]
[WhiteElo "2514"]
[BlackElo "2307"]
[Result "1-0"]
[Round "02"]
[TimeControl "180+1"]
[Date "2022.05.03"]
[WhiteClock "0:00:30"]
[BlackClock "0:00:04"]

1. e4 {[%clk 0:03:00]}  c6 {[%clk 0:02:58]} 2. c4 {[%clk 0:02:59]}  d5 {[%clk 0:02:53]} 3. exd5 {[%clk 0:03:00]}  cxd5 {[%clk 0:02:53]} 4. cxd5 {[%clk 0:03:00]}  Nf6 {[%clk 0:02:47]} 5. Nc3 {[%clk 0:03:00]}  g6 {[%clk 0:02:43]} 6. Nf3 {[%clk 0:03:00]}  Bg7 {[%clk 0:02:43]} 7. Bc4 {[%clk 0:02:59]}  O-O {[%clk 0:02:43]} 8. O-O {[%clk 0:02:59]}  Bg4 {[%clk 0:02:43]} 9. h3 {[%clk 0:02:58]}  Bxf3 {[%clk 0:02:43]} 10. Qxf3 {[%clk 0:02:59]}  Nbd7 {[%clk 0:02:43]} 11. d3 {[%clk 0:02:52]}  a6 {[%clk 0:02:42]} 12. a4 {[%clk 0:02:50]}  Rc8 {[%clk 0:02:23]} 13. Re1 {[%clk 0:02:35]}  Nb6 {[%clk 0:02:14]} 14. Bb3 {[%clk 0:02:27]}  Re8 {[%clk 0:01:47]} 15. Bg5 {[%clk 0:02:23]}  Qd6 {[%clk 0:01:46]} 16. a5 {[%clk 0:02:13]}  Nbd7 {[%clk 0:01:44]} 17. Qf4 {[%clk 0:02:02]}  Nc5 {[%clk 0:01:42]} 18. Bc4 {[%clk 0:01:53]}  Nh5 {[%clk 0:01:07]} 19. Qxd6 {[%clk 0:01:43]}  exd6 {[%clk 0:01:08]} 20. Be7 {[%clk 0:01:41]}  Bf8 {[%clk 0:00:56]} 21. Bxf8 {[%clk 0:01:39]}  Kxf8 {[%clk 0:00:57]} 22. b4 {[%clk 0:01:27]}  Nd7 {[%clk 0:00:54]} 23. Ne4 {[%clk 0:01:22]}  Rxe4 {[%clk 0:00:45]} 24. Rxe4 {[%clk 0:01:19]}  Nhf6 {[%clk 0:00:43]} 25. Rd4 {[%clk 0:01:09]}  Ne5 {[%clk 0:00:21]} 26. f4 {[%clk 0:01:03]}  Ned7 {[%clk 0:00:20]} 27. Re1 {[%clk 0:00:58]}  Ne8 {[%clk 0:00:15]} 28. g4 {[%clk 0:00:51]}  Ng7 {[%clk 0:00:15]} 29. Rde4 {[%clk 0:00:48]}  Rd8 {[%clk 0:00:12]} 30. Kg2 {[%clk 0:00:44]}  h5 {[%clk 0:00:11]} 31. Kg3 {[%clk 0:00:42]}  Nf6 {[%clk 0:00:09]} 32. R4e2 {[%clk 0:00:40]}  hxg4 {[%clk 0:00:06]} 33. hxg4 {[%clk 0:00:40]}  Nd7 {[%clk 0:00:07]} 34. Rh1 {[%clk 0:00:39]}  Kg8 {[%clk 0:00:06]} 35. Reh2 {[%clk 0:00:38]}  Ne8 {[%clk 0:00:02]} 36. g5 {[%clk 0:00:35]}  Kg7 {[%clk 0:00:03]} 37. Rh7+ {[%clk 0:00:34]}  Kf8 {[%clk 0:00:03]} 38. Rh8+ {[%clk 0:00:34]}  Ke7 {[%clk 0:00:04]} 39. Re1+ {[%clk 0:00:34]}  Ne5 {[%clk 0:00:03]} 40. fxe5 {[%clk 0:00:33]}  Kd7 {[%clk 0:00:04]} 41. e6+ {[%clk 0:00:32]}  fxe6 {[%clk 0:00:03]} 42. dxe6+ {[%clk 0:00:31]}  Kc6 {[%clk 0:00:04]} 43. e7 {[%clk 0:00:30]} 1-0


[Site "https://www.chess.com"]

[Event "Titled Tuesday Blitz May 03 Early 2022"]
[White "Beerdsen, Thomas"]
[Black "Begunov, Konstantin"]
[WhiteFideId "1030108"]
[BlackFideId "4118510"]
[WhiteElo "2585"]
[BlackElo "2262"]
[Result "1-0"]
[Round "02"]
[TimeControl "180+1"]
[Date "2022.05.03"]
[WhiteClock "0:00:51"]
[BlackClock "0:00:08"]

1. e4 {[%clk 0:03:00]}  c5 {[%clk 0:02:59]} 2. Nf3 {[%clk 0:03:00]}  d6 {[%clk 0:02:59]} 3. d4 {[%clk 0:03:00]}  cxd4 {[%clk 0:03:00]} 4. Nxd4 {[%clk 0:03:00]}  Nf6 {[%clk 0:03:00]} 5. Nc3 {[%clk 0:03:01]}  a6 {[%clk 0:03:00]} 6. a3 {[%clk 0:03:02]}  e6 {[%clk 0:02:55]} 7. g4 {[%clk 0:03:01]}  h6 {[%clk 0:02:52]} 8. h4 {[%clk 0:03:00]}  b5 {[%clk 0:02:46]} 9. Bg2 {[%clk 0:02:57]}  Bb7 {[%clk 0:02:46]} 10. g5 {[%clk 0:02:55]}  hxg5 {[%clk 0:02:45]} 11. hxg5 {[%clk 0:02:56]}  Rxh1+ {[%clk 0:02:44]} 12. Bxh1 {[%clk 0:02:57]}  Nfd7 {[%clk 0:02:40]} 13. g6 {[%clk 0:02:28]}  Qh4 {[%clk 0:02:32]} 14. gxf7+ {[%clk 0:02:25]}  Kxf7 {[%clk 0:02:33]} 15. Qf3+ {[%clk 0:02:11]}  Nf6 {[%clk 0:02:29]} 16. Be3 {[%clk 0:01:55]}  Nd7 {[%clk 0:02:25]} 17. O-O-O {[%clk 0:01:52]}  Ne5 {[%clk 0:02:24]} 18. Qe2 {[%clk 0:01:41]}  Neg4 {[%clk 0:02:02]} 19. Nf3 {[%clk 0:01:22]}  Qh5 {[%clk 0:01:37]} 20. e5 {[%clk 0:01:21]}  Nxe5 {[%clk 0:01:12]} 21. Nxe5+ {[%clk 0:01:19]}  Qxe5 {[%clk 0:01:02]} 22. Bxb7 {[%clk 0:01:19]}  Rb8 {[%clk 0:01:02]} 23. Bxa6 {[%clk 0:01:15]}  b4 {[%clk 0:01:01]} 24. axb4 {[%clk 0:01:16]}  Rxb4 {[%clk 0:01:00]} 25. Bc4 {[%clk 0:01:09]}  Qa5 {[%clk 0:00:55]} 26. Bxe6+ {[%clk 0:01:07]}  Kxe6 {[%clk 0:00:51]} 27. Bc5+ {[%clk 0:01:06]}  Kf7 {[%clk 0:00:46]} 28. Bxb4 {[%clk 0:01:06]}  Qxb4 {[%clk 0:00:45]} 29. Re1 {[%clk 0:01:04]}  Qh4 {[%clk 0:00:23]} 30. Qe6+ {[%clk 0:01:05]}  Kg6 {[%clk 0:00:23]} 31. Ne4 {[%clk 0:01:00]}  Qf4+ {[%clk 0:00:17]} 32. Kb1 {[%clk 0:01:00]}  d5 {[%clk 0:00:17]} 33. Nxf6 {[%clk 0:01:00]}  gxf6 {[%clk 0:00:16]} 34. Qg8+ {[%clk 0:00:59]}  Kf5 {[%clk 0:00:12]} 35. Qh7+ {[%clk 0:00:57]}  Kg4 {[%clk 0:00:12]} 36. Qg8+ {[%clk 0:00:52]}  Kf3 {[%clk 0:00:11]} 37. Qxf8 {[%clk 0:00:53]}  Kxf2 {[%clk 0:00:11]} 38. Rc1 {[%clk 0:00:51]}  f5 {[%clk 0:00:10]} 39. Qc5+ {[%clk 0:00:51]}  d4 {[%clk 0:00:10]} 40. c3 {[%clk 0:00:50]}  Qe4+ {[%clk 0:00:09]} 41. Rc2+ {[%clk 0:00:51]}  Ke1 {[%clk 0:00:08]} 42. Qxd4 {[%clk 0:00:51]} 1-0


[Site "https://www.chess.com"]

[Event "Titled Tuesday Blitz May 03 Early 2022"]
[White "Bethke, Richard"]
[Black "Melikhov, Evgeny V."]
[WhiteFideId "12959243"]
[BlackFideId "4122046"]
[WhiteElo "2534"]
[BlackElo "1931"]
[Result "1/2-1/2"]
[Round "02"]
[TimeControl "180+1"]
[Date "2022.05.03"]
[WhiteClock "0:00:49"]
[BlackClock "0:00:23"]

1. e4 {[%clk 0:03:00]}  e5 {[%clk 0:02:59]} 2. Nf3 {[%clk 0:02:58]}  Nc6 {[%clk 0:02:59]} 3. Bc4 {[%clk 0:02:51]}  Nf6 {[%clk 0:02:58]} 4. d3 {[%clk 0:02:29]}  Be7 {[%clk 0:02:56]} 5. O-O {[%clk 0:02:29]}  O-O {[%clk 0:02:55]} 6. Re1 {[%clk 0:02:30]}  d6 {[%clk 0:02:53]} 7. a4 {[%clk 0:02:29]}  Be6 {[%clk 0:02:52]} 8. Bxe6 {[%clk 0:02:29]}  fxe6 {[%clk 0:02:51]} 9. c3 {[%clk 0:02:29]}  Qd7 {[%clk 0:02:40]} 10. b4 {[%clk 0:02:21]}  a5 {[%clk 0:02:35]} 11. b5 {[%clk 0:02:21]}  Nd8 {[%clk 0:02:34]} 12. Na3 {[%clk 0:02:17]}  b6 {[%clk 0:02:33]} 13. Nc4 {[%clk 0:02:16]}  Nf7 {[%clk 0:02:20]} 14. d4 {[%clk 0:02:15]}  exd4 {[%clk 0:02:17]} 15. cxd4 {[%clk 0:02:16]}  Rae8 {[%clk 0:02:00]} 16. Ba3 {[%clk 0:02:10]}  h6 {[%clk 0:01:44]} 17. e5 {[%clk 0:02:09]}  Nd5 {[%clk 0:01:40]} 18. Qc2 {[%clk 0:01:56]}  Nb4 {[%clk 0:01:38]} 19. Bxb4 {[%clk 0:01:55]}  axb4 {[%clk 0:01:38]} 20. Rab1 {[%clk 0:01:54]}  d5 {[%clk 0:01:37]} 21. Ne3 {[%clk 0:01:51]}  Ng5 {[%clk 0:01:31]} 22. Nh4 {[%clk 0:01:45]}  Ne4 {[%clk 0:01:28]} 23. Ng6 {[%clk 0:01:43]}  Rxf2 {[%clk 0:01:13]} 24. Qb3 {[%clk 0:01:41]}  Bg5 {[%clk 0:01:08]} 25. Ng4 {[%clk 0:01:29]}  Qf7 {[%clk 0:00:52]} 26. Nxf2 {[%clk 0:01:24]}  Qxf2+ {[%clk 0:00:52]} 27. Kh1 {[%clk 0:01:24]}  Qf5 {[%clk 0:00:50]} 28. Qxb4 {[%clk 0:01:16]}  Qxg6 {[%clk 0:00:50]} 29. Rf1 {[%clk 0:01:11]}  Kh7 {[%clk 0:00:44]} 30. Rb2 {[%clk 0:01:03]}  Qh5 {[%clk 0:00:42]} 31. Qa3 {[%clk 0:01:02]}  Ra8 {[%clk 0:00:38]} 32. Rc2 {[%clk 0:00:58]}  Rxa4 {[%clk 0:00:34]} 33. Qxa4 {[%clk 0:00:55]}  Ng3+ {[%clk 0:00:34]} 34. Kg1 {[%clk 0:00:55]}  Be3+ {[%clk 0:00:33]} 35. Rcf2 {[%clk 0:00:51]}  Ne2+ {[%clk 0:00:26]} 36. Kh1 {[%clk 0:00:49]}  Ng3+ {[%clk 0:00:24]} 37. Kg1 {[%clk 0:00:49]}  Ne2+ {[%clk 0:00:22]} 38. Kh1 {[%clk 0:00:49]}  Ng3+ {[%clk 0:00:23]} 39. Kg1 {[%clk 0:00:49]} 1/2-1/2


[Site "https://www.chess.com"]

[Event "Titled Tuesday Blitz May 03 Early 2022"]
[White "Bettalli, Francesco"]
[Black "Pinero Rodriguez, Carlos Jose"]
[WhiteFideId "2816453"]
[BlackFideId "3901726"]
[WhiteElo "2216"]
[BlackElo "2053"]
[Result "0-1"]
[Round "02"]
[TimeControl "180+1"]
[Date "2022.05.03"]
[WhiteClock "0:01:49"]
[BlackClock "0:00:21"]

1. d4 {[%clk 0:03:00]}  c5 {[%clk 0:02:15]} 2. Nc3 {[%clk 0:03:01]}  cxd4 {[%clk 0:02:14]} 3. Qxd4 {[%clk 0:03:01]}  Nc6 {[%clk 0:02:14]} 4. Qh4 {[%clk 0:03:01]}  a6 {[%clk 0:02:13]} 5. Nf3 {[%clk 0:03:01]}  e6 {[%clk 0:02:11]} 6. Qxd8+ {[%clk 0:03:00]}  Nxd8 {[%clk 0:02:12]} 7. e4 {[%clk 0:03:00]}  Bb4 {[%clk 0:02:12]} 8. Bf4 {[%clk 0:03:00]}  Bxc3+ {[%clk 0:02:10]} 9. bxc3 {[%clk 0:03:01]}  Nf6 {[%clk 0:02:10]} 10. Bd3 {[%clk 0:02:59]}  O-O {[%clk 0:02:09]} 11. Bd6 {[%clk 0:02:59]}  Re8 {[%clk 0:02:09]} 12. e5 {[%clk 0:03:00]}  Nd5 {[%clk 0:02:08]} 13. c4 {[%clk 0:02:57]}  Nf4 {[%clk 0:02:08]} 14. O-O {[%clk 0:02:57]}  Nxd3 {[%clk 0:02:06]} 15. cxd3 {[%clk 0:02:57]}  b5 {[%clk 0:02:00]} 16. c5 {[%clk 0:02:56]}  Bb7 {[%clk 0:01:59]} 17. a4 {[%clk 0:02:54]}  Bxf3 {[%clk 0:01:44]} 18. gxf3 {[%clk 0:02:55]}  b4 {[%clk 0:01:42]} 19. a5 {[%clk 0:02:55]}  Nc6 {[%clk 0:01:42]} 20. Rfb1 {[%clk 0:02:54]}  f6 {[%clk 0:01:42]} 21. f4 {[%clk 0:02:54]}  fxe5 {[%clk 0:01:24]} 22. fxe5 {[%clk 0:02:55]}  Ra7 {[%clk 0:01:20]} 23. Rb3 {[%clk 0:02:53]}  Rb7 {[%clk 0:01:19]} 24. Rab1 {[%clk 0:02:53]}  Rb5 {[%clk 0:01:13]} 25. Ra1 {[%clk 0:02:46]}  Ra8 {[%clk 0:01:12]} 26. Kg2 {[%clk 0:02:43]}  Ra7 {[%clk 0:01:11]} 27. Ra4 {[%clk 0:02:37]}  Rab7 {[%clk 0:01:10]} 28. f4 {[%clk 0:02:30]}  Rxa5 {[%clk 0:01:06]} 29. Rxa5 {[%clk 0:02:26]}  Nxa5 {[%clk 0:01:07]} 30. Rb1 {[%clk 0:02:27]}  b3 {[%clk 0:01:07]} 31. Kf3 {[%clk 0:02:26]}  Nc6 {[%clk 0:01:07]} 32. Ke3 {[%clk 0:02:25]}  a5 {[%clk 0:01:07]} 33. f5 {[%clk 0:02:24]}  exf5 {[%clk 0:01:07]} 34. d4 {[%clk 0:02:24]}  a4 {[%clk 0:01:05]} 35. d5 {[%clk 0:02:25]}  a3 {[%clk 0:01:00]} 36. e6 {[%clk 0:02:16]}  a2 {[%clk 0:00:56]} 37. Rf1 {[%clk 0:02:16]}  b2 {[%clk 0:00:54]} 38. Rxf5 {[%clk 0:02:13]}  h6 {[%clk 0:00:49]} 39. Rf8+ {[%clk 0:01:59]}  Kh7 {[%clk 0:00:47]} 40. dxc6 {[%clk 0:02:00]}  dxc6 {[%clk 0:00:45]} 41. e7 {[%clk 0:01:56]}  Rxe7+ {[%clk 0:00:43]} 42. Bxe7 {[%clk 0:01:57]}  b1=Q {[%clk 0:00:37]} 43. Ra8 {[%clk 0:01:53]}  a1=Q {[%clk 0:00:36]} 44. Rxa1 {[%clk 0:01:54]}  Qxa1 {[%clk 0:00:36]} 45. Bd6 {[%clk 0:01:55]}  Qc3+ {[%clk 0:00:35]} 46. Ke4 {[%clk 0:01:55]}  Qe1+ {[%clk 0:00:31]} 47. Kf5 {[%clk 0:01:56]}  g6+ {[%clk 0:00:26]} 48. Kf6 {[%clk 0:01:56]}  Qc3+ {[%clk 0:00:25]} 49. Ke7 {[%clk 0:01:56]}  Kg7 {[%clk 0:00:23]} 50. Ke6 {[%clk 0:01:55]}  Qf6+ {[%clk 0:00:23]} 51. Kd7 {[%clk 0:01:55]}  Qf3 {[%clk 0:00:23]} 52. Ke6 {[%clk 0:01:53]}  g5 {[%clk 0:00:23]} 53. Be5+ {[%clk 0:01:50]}  Kg6 {[%clk 0:00:23]} 54. Bd6 {[%clk 0:01:51]}  Qd5+ {[%clk 0:00:23]} 55. Ke7 {[%clk 0:01:51]}  h5 {[%clk 0:00:24]} 56. Kd7 {[%clk 0:01:51]}  g4 {[%clk 0:00:25]} 57. Ke7 {[%clk 0:01:51]}  h4 {[%clk 0:00:25]} 58. Ke8 {[%clk 0:01:51]}  Qe4+ {[%clk 0:00:24]} 59. Kd7 {[%clk 0:01:51]}  Qd5 {[%clk 0:00:20]} 60. Ke7 {[%clk 0:01:50]}  Kf5 {[%clk 0:00:20]} 61. Kf8 {[%clk 0:01:49]}  Ke4 {[%clk 0:00:21]} 62. Ke7 {[%clk 0:01:49]}  Kf3 {[%clk 0:00:20]} 63. Kf6 {[%clk 0:01:49]}  g3 {[%clk 0:00:20]} 64. hxg3 {[%clk 0:01:49]}  hxg3 {[%clk 0:00:21]} 65. Bxg3 {[%clk 0:01:49]}  Kxg3 {[%clk 0:00:21]} 0-1


[Site "https://www.chess.com"]

[Event "Titled Tuesday Blitz May 03 Early 2022"]
[White "Bocharov, Dmitry"]
[Black "Rengifo Blancas, Renzo Jhonathan"]
[WhiteFideId "4138716"]
[BlackFideId "3807185"]
[WhiteElo "2541"]
[BlackElo "2058"]
[Result "1-0"]
[Round "02"]
[TimeControl "180+1"]
[Date "2022.05.03"]
[WhiteClock "0:01:55"]
[BlackClock "0:00:04"]

1. c4 {[%clk 0:03:00]}  e6 {[%clk 0:02:59]} 2. d4 {[%clk 0:02:59]}  d5 {[%clk 0:02:59]} 3. Nc3 {[%clk 0:02:59]}  Nf6 {[%clk 0:02:59]} 4. cxd5 {[%clk 0:02:58]}  exd5 {[%clk 0:02:58]} 5. Bg5 {[%clk 0:02:58]}  Bf5 {[%clk 0:02:34]} 6. Qb3 {[%clk 0:02:56]}  Nc6 {[%clk 0:02:16]} 7. e3 {[%clk 0:02:55]}  Na5 {[%clk 0:02:06]} 8. Bxf6 {[%clk 0:02:49]}  Nxb3 {[%clk 0:01:52]} 9. Bxd8 {[%clk 0:02:46]}  Nxa1 {[%clk 0:01:52]} 10. Bxc7 {[%clk 0:02:46]}  Rc8 {[%clk 0:01:34]} 11. Bg3 {[%clk 0:02:44]}  Bb4 {[%clk 0:01:32]} 12. Kd2 {[%clk 0:02:43]}  Bb1 {[%clk 0:01:17]} 13. Bb5+ {[%clk 0:02:38]}  Ke7 {[%clk 0:01:15]} 14. Ne2 {[%clk 0:02:38]}  Bxa2 {[%clk 0:00:45]} 15. Rxa1 {[%clk 0:02:34]}  a6 {[%clk 0:00:44]} 16. Rxa2 {[%clk 0:02:33]}  axb5 {[%clk 0:00:44]} 17. Ra7 {[%clk 0:02:34]}  Ke6 {[%clk 0:00:35]} 18. Rxb7 {[%clk 0:02:30]}  Bxc3+ {[%clk 0:00:29]} 19. Nxc3 {[%clk 0:02:31]}  Rhd8 {[%clk 0:00:25]} 20. Rb6+ {[%clk 0:02:28]}  Kf5 {[%clk 0:00:24]} 21. Rxb5 {[%clk 0:02:29]}  Ke6 {[%clk 0:00:23]} 22. Kd3 {[%clk 0:02:29]}  f6 {[%clk 0:00:22]} 23. Rb7 {[%clk 0:02:26]}  Rd7 {[%clk 0:00:21]} 24. Rxd7 {[%clk 0:02:24]}  Kxd7 {[%clk 0:00:21]} 25. b4 {[%clk 0:02:21]}  Ke6 {[%clk 0:00:20]} 26. b5 {[%clk 0:02:21]}  Rc4 {[%clk 0:00:20]} 27. b6 {[%clk 0:02:20]}  Rb4 {[%clk 0:00:20]} 28. Bc7 {[%clk 0:02:20]}  Rb2 {[%clk 0:00:20]} 29. g4 {[%clk 0:02:18]}  g6 {[%clk 0:00:19]} 30. h3 {[%clk 0:02:17]}  f5 {[%clk 0:00:19]} 31. g5 {[%clk 0:02:17]}  Rb3 {[%clk 0:00:18]} 32. Kc2 {[%clk 0:02:16]}  Rb4 {[%clk 0:00:18]} 33. Ne2 {[%clk 0:02:16]}  Kd7 {[%clk 0:00:18]} 34. Nf4 {[%clk 0:02:16]}  Kc6 {[%clk 0:00:18]} 35. Ne6 {[%clk 0:02:15]}  Rc4+ {[%clk 0:00:17]} 36. Kd2 {[%clk 0:02:14]}  Rb4 {[%clk 0:00:17]} 37. Ke2 {[%clk 0:02:13]}  Rb2+ {[%clk 0:00:17]} 38. Kf3 {[%clk 0:02:12]}  Kd7 {[%clk 0:00:06]} 39. Nf8+ {[%clk 0:02:07]}  Ke7 {[%clk 0:00:06]} 40. Nxh7 {[%clk 0:02:07]}  Kf7 {[%clk 0:00:06]} 41. Nf6 {[%clk 0:02:07]}  Ke6 {[%clk 0:00:07]} 42. h4 {[%clk 0:02:06]}  Rb1 {[%clk 0:00:06]} 43. h5 {[%clk 0:02:05]}  gxh5 {[%clk 0:00:06]} 44. Nxh5 {[%clk 0:02:06]}  Kf7 {[%clk 0:00:06]} 45. Nf4 {[%clk 0:02:06]}  Rb5 {[%clk 0:00:06]} 46. g6+ {[%clk 0:02:00]}  Kf6 {[%clk 0:00:06]} 47. Be5+ {[%clk 0:02:00]}  Ke7 {[%clk 0:00:04]} 48. Nxd5+ {[%clk 0:01:55]}  Kf8 {[%clk 0:00:04]} 49. g7+ {[%clk 0:01:55]}  Kg8 {[%clk 0:00:04]} 50. Ne7+ {[%clk 0:01:55]} 1-0


[Site "https://www.chess.com"]

[Event "Titled Tuesday Blitz May 03 Early 2022"]
[White "Bommini, Mounika Akshaya"]
[Black "Zlatin, Alexander"]
[WhiteFideId "25019872"]
[BlackFideId "2810549"]
[WhiteElo "1671"]
[BlackElo "2228"]
[Result "0-1"]
[Round "02"]
[TimeControl "180+1"]
[Date "2022.05.03"]
[WhiteClock "0:01:15"]
[BlackClock "0:00:33"]

1. d4 {[%clk 0:03:00]}  d5 {[%clk 0:02:47]} 2. Bf4 {[%clk 0:03:00]}  e6 {[%clk 0:02:47]} 3. e3 {[%clk 0:03:00]}  Bd6 {[%clk 0:02:47]} 4. Bg3 {[%clk 0:03:00]}  Nf6 {[%clk 0:02:47]} 5. Nd2 {[%clk 0:02:57]}  c5 {[%clk 0:02:48]} 6. c3 {[%clk 0:02:57]}  Nc6 {[%clk 0:02:48]} 7. Ngf3 {[%clk 0:02:57]}  O-O {[%clk 0:02:48]} 8. Bd3 {[%clk 0:02:57]}  b6 {[%clk 0:02:48]} 9. Qe2 {[%clk 0:02:55]}  Bb7 {[%clk 0:02:48]} 10. Rd1 {[%clk 0:02:54]}  Ne7 {[%clk 0:02:43]} 11. e4 {[%clk 0:02:52]}  dxe4 {[%clk 0:02:40]} 12. Nxe4 {[%clk 0:02:48]}  Nxe4 {[%clk 0:02:38]} 13. Bxe4 {[%clk 0:02:48]}  Bxe4 {[%clk 0:02:38]} 14. dxc5 {[%clk 0:02:31]}  Bxf3 {[%clk 0:02:13]} 15. Qxf3 {[%clk 0:02:28]}  bxc5 {[%clk 0:02:07]} 16. Rxd6 {[%clk 0:02:24]}  Qa5 {[%clk 0:02:01]} 17. O-O {[%clk 0:02:17]}  Qxa2 {[%clk 0:01:53]} 18. Be5 {[%clk 0:02:15]}  Nf5 {[%clk 0:01:51]} 19. Rd2 {[%clk 0:02:14]}  Rad8 {[%clk 0:01:47]} 20. Rxd8 {[%clk 0:02:04]}  Rxd8 {[%clk 0:01:47]} 21. Qb7 {[%clk 0:02:04]}  Qd5 {[%clk 0:01:44]} 22. Qc7 {[%clk 0:01:58]}  f6 {[%clk 0:01:42]} 23. Bf4 {[%clk 0:01:55]}  g5 {[%clk 0:01:33]} 24. Bc1 {[%clk 0:01:50]}  Rd7 {[%clk 0:01:25]} 25. Qb8+ {[%clk 0:01:49]}  Kg7 {[%clk 0:01:25]} 26. h3 {[%clk 0:01:49]}  Nh4 {[%clk 0:01:22]} 27. f3 {[%clk 0:01:44]}  Qd6 {[%clk 0:01:16]} 28. Qxd6 {[%clk 0:01:40]}  Rxd6 {[%clk 0:01:17]} 29. Be3 {[%clk 0:01:41]}  Rb6 {[%clk 0:01:13]} 30. Rf2 {[%clk 0:01:38]}  Rb5 {[%clk 0:01:10]} 31. Rd2 {[%clk 0:01:38]}  Kg6 {[%clk 0:01:08]} 32. Kf1 {[%clk 0:01:34]}  Nf5 {[%clk 0:01:07]} 33. Bf2 {[%clk 0:01:34]}  a5 {[%clk 0:01:05]} 34. Rd7 {[%clk 0:01:29]}  Rxb2 {[%clk 0:01:02]} 35. Bxc5 {[%clk 0:01:28]}  Ng3+ {[%clk 0:00:59]} 36. Ke1 {[%clk 0:01:24]}  Rxg2 {[%clk 0:00:59]} 37. Bf2 {[%clk 0:01:23]}  Nf5 {[%clk 0:00:45]} 38. Ra7 {[%clk 0:01:22]}  Rh2 {[%clk 0:00:44]} 39. Rxa5 {[%clk 0:01:22]}  Rxh3 {[%clk 0:00:44]} 40. Ke2 {[%clk 0:01:22]}  Rh1 {[%clk 0:00:40]} 41. Be1 {[%clk 0:01:21]}  h5 {[%clk 0:00:38]} 42. c4 {[%clk 0:01:19]}  h4 {[%clk 0:00:38]} 43. c5 {[%clk 0:01:19]}  h3 {[%clk 0:00:38]} 44. c6 {[%clk 0:01:17]}  Nd4+ {[%clk 0:00:36]} 45. Kf2 {[%clk 0:01:17]}  Nxc6 {[%clk 0:00:36]} 46. Bc3 {[%clk 0:01:15]}  Nxa5 {[%clk 0:00:33]} 0-1


[Site "https://www.chess.com"]

[Event "Titled Tuesday Blitz May 03 Early 2022"]
[White "Buscar, Michael"]
[Black "Erdogdu, Mert"]
[WhiteFideId "2603616"]
[BlackFideId "6301495"]
[WhiteElo "2010"]
[BlackElo "2485"]
[Result "0-1"]
[Round "02"]
[TimeControl "180+1"]
[Date "2022.05.03"]
[WhiteClock "0:00:08"]
[BlackClock "0:01:13"]

1. Nf3 {[%clk 0:03:00]}  d5 {[%clk 0:02:59]} 2. g3 {[%clk 0:02:59]}  c5 {[%clk 0:02:59]} 3. Bg2 {[%clk 0:03:00]}  e6 {[%clk 0:02:59]} 4. O-O {[%clk 0:03:00]}  Nf6 {[%clk 0:03:00]} 5. d4 {[%clk 0:03:00]}  Nc6 {[%clk 0:03:01]} 6. c4 {[%clk 0:02:58]}  Be7 {[%clk 0:03:01]} 7. cxd5 {[%clk 0:02:59]}  exd5 {[%clk 0:03:01]} 8. dxc5 {[%clk 0:02:58]}  Bxc5 {[%clk 0:03:02]} 9. Nc3 {[%clk 0:02:57]}  O-O {[%clk 0:03:02]} 10. Na4 {[%clk 0:02:49]}  Be7 {[%clk 0:03:00]} 11. Nd4 {[%clk 0:02:45]}  Re8 {[%clk 0:02:56]} 12. b3 {[%clk 0:02:42]}  Bg4 {[%clk 0:02:52]} 13. Re1 {[%clk 0:02:37]}  Bb4 {[%clk 0:02:36]} 14. Bd2 {[%clk 0:02:37]}  Nxd4 {[%clk 0:02:35]} 15. Bxb4 {[%clk 0:02:37]}  Nxe2+ {[%clk 0:02:35]} 16. Rxe2 {[%clk 0:02:36]}  Bxe2 {[%clk 0:02:34]} 17. Qd4 {[%clk 0:02:36]}  Bb5 {[%clk 0:02:29]} 18. Nc3 {[%clk 0:02:34]}  Bc6 {[%clk 0:02:29]} 19. Rd1 {[%clk 0:02:27]}  Ne4 {[%clk 0:02:26]} 20. Nxd5 {[%clk 0:02:18]}  Bxd5 {[%clk 0:02:02]} 21. Qxd5 {[%clk 0:02:16]}  Qxd5 {[%clk 0:02:02]} 22. Rxd5 {[%clk 0:02:17]}  Rac8 {[%clk 0:01:58]} 23. Bf3 {[%clk 0:01:45]}  Nf6 {[%clk 0:01:49]} 24. Rd2 {[%clk 0:01:39]}  b6 {[%clk 0:01:49]} 25. Kg2 {[%clk 0:01:40]}  h6 {[%clk 0:01:48]} 26. h4 {[%clk 0:01:38]}  Red8 {[%clk 0:01:47]} 27. Re2 {[%clk 0:01:27]}  Nd5 {[%clk 0:01:47]} 28. Ba3 {[%clk 0:01:17]}  Rc7 {[%clk 0:01:41]} 29. h5 {[%clk 0:00:57]}  a5 {[%clk 0:01:40]} 30. Kh3 {[%clk 0:00:24]}  b5 {[%clk 0:01:37]} 31. Bb2 {[%clk 0:00:18]}  b4 {[%clk 0:01:30]} 32. a3 {[%clk 0:00:16]}  bxa3 {[%clk 0:01:25]} 33. Bxa3 {[%clk 0:00:16]}  Rc3 {[%clk 0:01:25]} 34. Be4 {[%clk 0:00:13]}  Rxb3 {[%clk 0:01:23]} 35. Bc5 {[%clk 0:00:13]}  Nc3 {[%clk 0:01:21]} 36. Bc2 {[%clk 0:00:07]}  Nxe2 {[%clk 0:01:15]} 37. Bxb3 {[%clk 0:00:08]}  Nd4 {[%clk 0:01:14]} 38. Bc4 {[%clk 0:00:06]}  Rc8 {[%clk 0:01:12]} 39. Bxf7+ {[%clk 0:00:06]}  Kxf7 {[%clk 0:01:13]} 40. Bxd4 {[%clk 0:00:07]}  a4 {[%clk 0:01:12]} 41. f4 {[%clk 0:00:07]}  a3 {[%clk 0:01:13]} 42. g4 {[%clk 0:00:08]}  a2 {[%clk 0:01:13]} 43. Bb2 {[%clk 0:00:08]}  Rc2 {[%clk 0:01:12]} 44. Ba1 {[%clk 0:00:08]}  Rc1 {[%clk 0:01:13]} 45. Bb2 {[%clk 0:00:08]}  Rb1 {[%clk 0:01:13]} 46. Bc3 {[%clk 0:00:08]}  Rb3 {[%clk 0:01:13]} 0-1


[Site "https://www.chess.com"]